bitfinex-derivatives/quotes_BTCF0:USTF0_20260207
["timestamp","ask_amount","ask_price","bid_price","bid_amount"]
[1770451694582,0.014673,68196.0,68158.0,0.0002]
[1770451694583,0.014676,68182.0,68158.0,0.0002]
[1770451694785,0.5625525,68182.0,68158.0,0.0002]
[1770451695292,0.5478765,68200.0,68152.0,0.43640726]
[1770451695493,0.014673,68196.0,68181.0,0.0015]
[1770451695890,0.01467,68208.0,68174.0,0.43640726]
[1770451696083,0.014672,68202.0,68174.0,0.43640726]
[1770451696284,0.5478765,68196.0,68162.0,0.43640726]
[1770451696597,0.01467,68204.0,68172.0,0.43640726]
[1770451697292,0.01467,68204.0,68174.0,0.42872821]
[1770451697495,0.014669,68208.0,68174.0,0.42872821]
[1770451697698,0.01467,68205.0,68174.0,0.42872821]
[1770451697891,0.01467,68206.0,68176.0,0.42872821]
[1770451698500,0.01467,68206.0,68160.0,0.63508]
[1770451698501,0.5478765,68220.0,68181.0,0.42872821]
[1770451698693,0.014667,68218.0,68187.0,0.44340221]
[1770451699294,0.014668,68215.0,68187.0,0.42872821]
[1770451699493,0.5478765,68220.0,68187.0,0.42872821]
[1770451699796,0.5478765,68211.0,68179.0,0.43159849]
[1770451700004,0.5478765,68211.0,68163.0,0.0002]
[1770451700005,0.5478765,68194.0,68163.0,0.0002]
[1770451700196,0.014673,68192.0,68163.0,0.0002]
[1770451700393,0.5478765,68184.0,68146.0,0.43159849]
[1770451700595,0.014671,68197.0,68146.0,0.39059849]
[1770451700596,0.5478765,68173.0,68146.0,0.39059849]
[1770451700793,0.014678,68169.0,68146.0,0.39059849]
[1770451700994,0.5478765,68169.0,68136.0,0.39075703]
[1770451701203,0.014678,68165.0,68136.0,0.39075703]
[1770451701406,0.5478765,68186.0,68160.0,0.0002]
[1770451701703,0.5478765,68176.0,68146.0,0.001]
[1770451702106,0.014677,68171.0,68146.0,0.001]
[1770451702306,0.5625535,68171.0,68146.0,0.001]
[1770451702499,0.5478765,68171.0,68146.0,0.001]
[1770451702796,0.5478765,68160.0,68146.0,0.001]
[1770451702998,0.5476765,68160.0,68140.0,0.00588503]
[1770451703589,0.45024682,68181.0,68140.0,0.39309947]
[1770451703590,0.014677,68169.0,68140.0,0.39309947]
[1770451703808,0.014678,68165.0,68140.0,0.39309947]
[1770451703997,0.5478765,68171.0,68140.0,0.00588503]
[1770451703998,0.01468,68159.0,68140.0,0.00588503]
[1770451704204,0.5478765,68167.0,68140.0,0.00588503]
[1770451704404,0.014679,68161.0,68140.0,0.00588503]
[1770451705098,0.014678,68166.0,68140.0,0.00588503]
[1770451705398,0.59535704,68193.0,68120.0,0.15042558]
[1770451705399,0.5478765,68156.0,68120.0,0.40257871]
[1770451705801,0.5478765,68166.0,68126.0,0.40257871]
[1770451705998,0.5478765,68166.0,68131.0,0.014685]
[1770451706202,0.5478765,68166.0,68134.0,0.40257871]
[1770451706398,0.014679,68162.0,68134.0,0.40257871]
[1770451707003,0.01468,68159.0,68134.0,0.40257871]
[1770451707300,0.01468,68159.0,68110.0,0.15096521]
[1770451707301,0.5478765,68159.0,68123.0,0.41852125]
[1770451707510,0.5478765,68158.0,68123.0,0.43320825]
[1770451707803,0.5478765,68154.0,68123.0,0.41852125]
[1770451707993,0.014683,68142.0,68123.0,0.41852125]
[1770451708300,0.01468,68158.0,68095.0,0.94932]
[1770451708301,0.014684,68137.0,68113.0,0.37752125]
[1770451708507,0.5478765,68145.0,68113.0,0.37752125]
[1770451708901,0.5478765,68145.0,68095.0,0.94932]
[1770451708902,0.5478765,68155.0,68117.0,0.40215102]
[1770451709096,0.5478765,68149.0,68117.0,0.40215102]
[1770451709503,0.5478765,68149.0,68117.0,0.40195925]
[1770451710004,0.014681,68151.0,68119.0,0.40195925]
[1770451710202,0.5478765,68159.0,68119.0,0.40195925]
[1770451710404,0.014683,68146.0,68119.0,0.40195925]
[1770451710703,0.5478765,68144.0,68107.0,0.40195925]
[1770451711008,0.5625575,68153.0,68118.0,0.41491696]
[1770451711203,0.5625575,68153.0,68118.0,0.40022896]
[1770451711204,0.5478765,68153.0,68118.0,0.40022896]
[1770451711404,0.014683,68142.0,68107.0,0.40022897]
[1770451711603,0.5625605,68140.0,68107.0,0.40022897]
[1770451712010,0.5478765,68140.0,68111.0,0.40022897]
[1770451712213,0.014683,68145.0,68114.0,0.40022897]
[1770451712604,0.5625605,68141.0,68114.0,0.40022897]
[1770451712800,0.5478765,68134.0,68103.0,0.40291298]
[1770451713009,0.01468,68159.0,68103.0,0.40291298]
[1770451713010,0.5478765,68155.0,68103.0,0.40291298]
[1770451713207,0.014684,68138.0,68105.0,0.40291298]
[1770451713511,0.5478765,68131.0,68096.0,0.40291298]
[1770451713806,0.5478765,68130.0,68096.0,0.40291298]
[1770451713999,0.014687,68125.0,68103.0,0.001]
[1770451714404,0.5478765,68128.0,68103.0,0.001]
[1770451714612,0.014687,68127.0,68103.0,0.001]
[1770451714912,0.5478765,68125.0,68103.0,0.001]
[1770451715510,0.5478765,68125.0,68096.0,0.001]
[1770451715709,0.014683,68145.0,68096.0,0.001]
[1770451715710,0.5625655,68118.0,68096.0,0.001]
[1770451715905,0.014687,68126.0,68097.0,0.41168988]
[1770451716108,0.54226422,68129.0,68097.0,0.39468988]
[1770451716304,0.54226422,68139.0,68102.0,0.39468988]
[1770451716504,0.014684,68137.0,68125.0,0.0016]
[1770451716706,0.54226422,68149.0,68125.0,0.0016]
[1770451717113,0.54226422,68139.0,68105.0,0.40734341]
[1770451717611,0.014684,68138.0,68106.0,0.014691]
[1770451717816,0.54226422,68139.0,68106.0,0.40734341]
[1770451718017,0.55694822,68139.0,68106.0,0.40734341]
[1770451718217,0.54226422,68139.0,68106.0,0.40734341]
[1770451718511,0.014684,68138.0,68106.0,0.40734341]
[1770451719504,0.43557182,68159.0,68112.0,0.39487503]
[1770451719505,0.014683,68146.0,68112.0,0.39487503]
[1770451719710,0.54226422,68145.0,68112.0,0.39487503]
[1770451720015,0.54226422,68143.0,68112.0,0.39487503]
[1770451720318,0.014684,68139.0,68112.0,0.39487503]
[1770451720518,0.00010574,68138.0,68112.0,0.39487503]
[1770451720716,0.014684,68139.0,68112.0,0.39487503]
[1770451721316,0.00012354,68138.0,68112.0,0.39487503]
[1770451721507,0.014683,68142.0,68114.0,0.39373292]
[1770451721913,0.014684,68140.0,68114.0,0.39373292]
[1770451722511,0.014683,68144.0,68114.0,0.40842192]
[1770451722719,0.014682,68148.0,68118.0,0.39373292]
[1770451723019,0.55694922,68136.0,68105.0,0.40862703]
[1770451723412,0.54226422,68136.0,68105.0,0.39393603]
[1770451723811,0.014686,68129.0,68105.0,0.39393603]
[1770451724113,0.014685,68132.0,68105.0,0.39393603]
[1770451724313,0.54226422,68134.0,68105.0,0.39393603]
[1770451724314,0.014686,68129.0,68105.0,0.39393603]
[1770451724622,0.54226422,68134.0,68105.0,0.37793603]
[1770451724823,0.014687,68125.0,68095.0,0.37793603]
[1770451725521,0.54226422,68131.0,68095.0,0.37793603]
[1770451725915,0.54226422,68131.0,68105.0,0.39407001]
[1770451726116,0.014686,68131.0,68105.0,0.37937901]
[1770451726310,0.014686,68128.0,68105.0,0.37937901]
[1770451726715,0.00011496,68127.0,68105.0,0.37937901]
[1770451726916,0.00011496,68127.0,68092.0,0.38075003]
[1770451727120,0.014686,68129.0,68097.0,0.38075003]
[1770451727320,0.54226422,68131.0,68105.0,0.38075003]
[1770451727520,0.54226422,68143.0,68105.0,0.38075003]
[1770451727824,0.014686,68131.0,68105.0,0.38075003]
[1770451728020,0.014686,68129.0,68105.0,0.38075003]
[1770451729625,0.014687,68127.0,68105.0,0.38075003]
[1770451730219,0.54226422,68132.0,68105.0,0.38075003]
[1770451730416,0.014687,68127.0,68105.0,0.38075003]
[1770451731419,0.55695022,68127.0,68098.0,0.38164311]
[1770451731724,0.55695022,68127.0,68100.0,0.38164311]
[1770451731925,0.014685,68135.0,68106.0,0.39633411]
[1770451732128,0.54226422,68137.0,68106.0,0.38164311]
[1770451732418,0.014686,68132.0,68106.0,0.37933411]
[1770451732624,0.014685,68135.0,68106.0,0.37933411]
[1770451732817,0.54226422,68134.0,68106.0,0.36464311]
[1770451733024,0.073407,68153.0,68106.0,0.36464311]
[1770451733025,0.43557182,68142.0,68106.0,0.36464311]
[1770451733324,0.014685,68134.0,68109.0,0.36711692]
[1770451733520,0.014684,68138.0,68110.0,0.01469]
[1770451733724,0.014685,68136.0,68111.0,0.36711692]
[1770451734429,0.54226422,68144.0,68116.0,0.36711692]
[1770451734722,0.014683,68143.0,68116.0,0.36711692]
[1770451734925,0.54226422,68144.0,68116.0,0.36711692]
[1770451734926,0.014684,68141.0,68116.0,0.36711692]
[1770451735628,0.54226422,68144.0,68116.0,0.36711692]
[1770451735827,0.014684,68139.0,68116.0,0.36711692]
[1770451736121,0.014685,68137.0,68116.0,0.36711692]
[1770451736523,0.014684,68140.0,68116.0,0.36711692]
[1770451736719,0.54226422,68144.0,68116.0,0.36711692]
[1770451736924,0.014684,68138.0,68116.0,0.36711692]
[1770451737426,0.014685,68136.0,68116.0,0.36711692]
[1770451737629,0.014685,68134.0,68116.0,0.36711692]
[1770451738325,0.014685,68136.0,68116.0,0.36711692]
[1770451738735,0.014685,68134.0,68116.0,0.36711692]
[1770451739322,0.00012316,68133.0,68116.0,0.36711692]
[1770451739524,0.014686,68131.0,68116.0,0.36711692]
[1770451739827,0.54226422,68141.0,68106.0,0.36076318]
[1770451740021,0.54226422,68139.0,68106.0,0.35076318]
[1770451740325,0.014687,68126.0,68106.0,0.35076318]
[1770451740527,0.014687,68124.0,68106.0,0.35076318]
[1770451740919,0.014688,68122.0,68106.0,0.35076318]
[1770451741314,0.43557182,68132.0,68091.0,0.000168]
[1770451741315,0.54226422,68114.0,68091.0,0.000168]
[1770451741523,0.54226422,68114.0,68087.0,0.35402449]
[1770451741524,0.54226422,68114.0,68087.0,0.36871949]
[1770451741724,0.014688,68119.0,68087.0,0.36871949]
[1770451741929,0.014688,68119.0,68095.0,0.35402449]
[1770451742825,0.54226422,68116.0,68085.0,0.34933982]
[1770451743128,0.014689,68114.0,68085.0,0.34933982]
[1770451743324,0.01469,68113.0,68085.0,0.34933982]
[1770451743625,0.014689,68114.0,68087.0,0.34933982]
[1770451743827,0.55695322,68114.0,68087.0,0.34933982]
[1770451744025,0.014689,68114.0,68087.0,0.34933982]
[1770451744225,0.00013056,68113.0,68087.0,0.34933982]
[1770451744527,0.014689,68114.0,68087.0,0.34933982]
[1770451744721,0.01469,68112.0,68087.0,0.34933982]
[1770451746134,0.43557182,68129.0,68066.0,0.0002]
[1770451746135,0.52539016,68095.0,68066.0,0.35714568]
[1770451746433,0.54008416,68095.0,68066.0,0.35714568]
[1770451746729,0.45026182,68111.0,68066.0,0.35714568]
[1770451746730,0.52539016,68104.0,68066.0,0.37184568]
[1770451746929,0.014693,68097.0,68066.0,0.35714568]
[1770451747325,0.00016737,68096.0,68066.0,0.35714568]
[1770451747525,0.014692,68101.0,68069.0,0.42497723]
[1770451747926,0.014693,68098.0,68069.0,0.38397723]
[1770451748122,0.52539016,68100.0,68069.0,0.38397723]
[1770451748326,0.00016737,68099.0,68073.0,0.38397723]
[1770451748527,0.00016737,68099.0,68072.0,0.014698]
[1770451748528,0.014689,68115.0,68076.0,0.38397723]
[1770451748729,0.014691,68108.0,68078.0,0.38397723]
[1770451749026,0.570135,68101.0,68069.0,0.3579669]
[1770451749225,0.570135,68101.0,68069.0,0.3581669]
[1770451749226,0.014694,68095.0,68069.0,0.3581669]
[1770451749427,0.570135,68101.0,68069.0,0.3581669]
[1770451749631,0.014695,68089.0,68069.0,0.3581669]
[1770451750030,0.014694,68093.0,68069.0,0.3581669]
[1770451750327,0.014693,68097.0,68069.0,0.3579669]
[1770451750529,0.570135,68099.0,68072.0,0.3579669]
[1770451750728,0.014691,68107.0,68072.0,0.3579669]
[1770451751128,0.014691,68107.0,68074.0,0.3687819]
[1770451751330,0.570135,68109.0,68081.0,0.3687819]
[1770451751530,0.014691,68108.0,68081.0,0.3687819]
[1770451752332,0.570135,68109.0,68081.0,0.3687819]
[1770451752527,0.43557182,68121.0,68081.0,0.3687819]
[1770451752528,0.570135,68107.0,68081.0,0.3687819]
[1770451752728,0.43557182,68123.0,68081.0,0.3687819]
[1770451753028,0.014691,68107.0,68085.0,0.36442095]
[1770451753233,0.014692,68101.0,68074.0,0.36442095]
[1770451754132,0.43557182,68117.0,68084.0,0.36442095]
[1770451754331,0.584824,68118.0,68084.0,0.36442095]
[1770451754832,0.014689,68116.0,68087.0,0.36442095]
[1770451755032,0.584824,68117.0,68087.0,0.36442095]
[1770451755835,0.584824,68117.0,68087.0,0.33942095]
[1770451756932,0.014688,68121.0,68089.0,0.34038915]
[1770451757134,0.014687,68125.0,68094.0,0.34038915]
[1770451757641,0.014687,68125.0,68120.0,1e-08]
[1770451757835,0.014687,68125.0,68096.0,0.34038915]
[1770451758038,0.43557182,68131.0,68101.0,0.34038915]
[1770451758039,0.43557182,68130.0,68101.0,0.34038915]
[1770451758338,0.014686,68131.0,68101.0,0.34038915]
[1770451758637,0.014686,68129.0,68101.0,0.34038915]
[1770451759232,0.014685,68133.0,68101.0,0.34038915]
[1770451759434,0.014685,68133.0,68103.0,0.34109999]
[1770451759831,0.014685,68133.0,68132.0,0.0017]
[1770451760139,0.014685,68133.0,68103.0,0.34109999]
[1770451760339,0.014686,68131.0,68103.0,0.34109999]
[1770451760541,0.014686,68129.0,68103.0,0.34109999]
[1770451760945,0.014685,68133.0,68103.0,0.34109999]
[1770451761138,0.015685,68133.0,68103.0,0.34109999]
[1770451761544,0.014686,68130.0,68103.0,0.34109999]
[1770451761842,0.014686,68127.0,68103.0,0.34109999]
[1770451762441,0.0001542,68126.0,68103.0,0.34109999]
[1770451762642,0.014686,68127.0,68103.0,0.34109999]
[1770451763540,0.014686,68127.0,68103.0,0.31009999]
[1770451763737,0.570135,68132.0,68103.0,0.31009999]
[1770451764247,0.570135,68131.0,68103.0,0.31009999]
[1770451764745,0.014687,68127.0,68103.0,0.31009999]
[1770451765044,0.43557182,68133.0,68105.0,0.32148589]
[1770451765244,0.014685,68134.0,68105.0,0.32148589]
[1770451765444,0.014685,68134.0,68126.0,0.0277]
[1770451765639,0.014685,68134.0,68105.0,0.32148589]
[1770451766041,0.014686,68131.0,68105.0,0.32148589]
[1770451766244,0.014686,68129.0,68105.0,0.32148589]
[1770451766446,0.014687,68127.0,68105.0,0.32148589]
[1770451767037,0.570135,68126.0,68096.0,0.32322391]
[1770451767345,0.570135,68126.0,68078.0,0.44864]
[1770451767346,0.014688,68122.0,68091.0,0.32322391]
[1770451767551,0.43557182,68122.0,68096.0,0.32322391]
[1770451767953,0.014688,68121.0,68096.0,0.32322391]
[1770451768147,0.014688,68118.0,68096.0,0.32322391]
[1770451768448,0.014689,68118.0,68096.0,0.32322391]
[1770451768649,0.43557182,68119.0,68096.0,0.32322391]
[1770451769245,0.45025982,68121.0,68096.0,0.32322391]
[1770451769652,0.43557182,68121.0,68096.0,0.32322391]
[1770451770043,0.570135,68118.0,68081.0,0.32395926]
[1770451770448,1.00570682,68118.0,68081.0,0.32395926]
[1770451770652,0.570135,68117.0,68081.0,0.32395926]
[1770451770852,0.570135,68115.0,68081.0,0.32395926]
[1770451771246,0.570135,68115.0,68081.0,0.28295926]
[1770451771453,0.584824,68115.0,68086.0,0.28016281]
[1770451772147,0.014689,68115.0,68086.0,0.28016281]
[1770451772641,0.00016737,68114.0,68086.0,0.28016281]
[1770451772843,0.014689,68115.0,68086.0,0.28016281]
[1770451773048,0.43557182,68116.0,68093.0,0.28158966]
[1770451773252,0.43557182,68121.0,68095.0,0.28158966]
[1770451773751,0.43557182,68122.0,68095.0,0.28158966]
[1770451775148,0.43557182,68122.0,68098.0,0.28247038]
[1770451775350,0.43557182,68122.0,68100.0,0.28247038]
[1770451775550,0.43557182,68126.0,68100.0,0.28247038]
[1770451775957,0.43557182,68126.0,68121.0,0.0017]
[1770451776257,0.43557182,68126.0,68100.0,0.28247038]
[1770451777361,0.43557182,68128.0,68100.0,0.28247038]
[1770451777551,0.43557182,68128.0,68102.0,0.28361833]
[1770451778962,0.43557182,68128.0,68066.0,0.26728201]
[1770451778963,0.53721419,68120.0,68066.0,0.26728201]
[1770451779260,0.53721419,68095.0,68066.0,0.26728201]
[1770451779458,0.014695,68088.0,68066.0,0.26728201]
[1770451779656,0.014696,68084.0,68066.0,0.26728201]
[1770451779957,0.014692,68104.0,68048.0,0.26728201]
[1770451779958,0.53721419,68092.0,68048.0,0.26728201]
[1770451780149,0.53721419,68078.0,68048.0,0.26728201]
[1770451780351,0.014699,68068.0,68043.0,0.00014439]
[1770451780753,0.0147,68066.0,68043.0,0.00014439]
[1770451781155,0.014701,68062.0,68043.0,0.00014439]
[1770451781556,0.014701,68058.0,68043.0,0.00014439]
[1770451781752,0.014701,68058.0,68022.0,0.03886301]
[1770451781753,0.53721419,68060.0,68028.0,0.25611948]
[1770451781957,0.53721419,68060.0,68022.0,0.03886301]
[1770451781958,0.014703,68050.0,68022.0,0.03886301]
[1770451782161,0.53721419,68050.0,68022.0,0.03886301]
[1770451782361,0.53721419,68050.0,68010.0,0.25611948]
[1770451782661,0.53721419,68050.0,68011.0,0.27083048]
[1770451782862,0.014702,68058.0,68019.0,0.26037183]
[1770451783053,0.014702,68054.0,68019.0,0.26037183]
[1770451783262,0.55191719,68050.0,68019.0,0.26037183]
[1770451783657,0.014704,68046.0,68019.0,0.26037183]
[1770451784060,0.014704,68044.0,68019.0,0.26037183]
[1770451784357,0.014704,68045.0,68019.0,0.26037183]
[1770451785361,0.53721419,68047.0,68019.0,0.26037183]
[1770451785665,0.53721419,68057.0,68019.0,0.26037183]
[1770451785966,0.014704,68048.0,68019.0,0.26037183]
[1770451786166,0.014699,68068.0,68032.0,0.014707]
[1770451786374,0.53721419,68075.0,68040.0,0.25108518]
[1770451786574,0.53721419,68085.0,68055.0,0.26578718]
[1770451786773,0.53721419,68100.0,68067.0,0.0014]
[1770451786973,0.53721419,68098.0,68067.0,0.0014]
[1770451787177,0.53721419,68098.0,68070.0,0.26751505]
[1770451787379,0.53721419,68098.0,68059.0,0.25281605]
[1770451787673,0.53721419,68096.0,68059.0,0.25281605]
[1770451787875,0.53721419,68094.0,68059.0,0.25281605]
[1770451788076,0.53721419,68092.0,68059.0,0.25281605]
[1770451788267,0.53721419,68091.0,68059.0,0.25281605]
[1770451788473,0.014693,68098.0,68055.0,0.014702]
[1770451788474,0.53721419,68089.0,68055.0,0.014702]
[1770451788672,0.53721419,68089.0,68058.0,0.014701]
[1770451788868,0.53721419,68088.0,68054.0,0.014702]
[1770451789072,0.53721419,68087.0,68058.0,0.014701]
[1770451789274,0.53721419,68086.0,68058.0,0.014701]
[1770451789472,0.53721419,68084.0,68050.0,0.014703]
[1770451789672,0.53721419,68084.0,68048.0,0.25281605]
[1770451789673,0.53721419,68084.0,68054.0,0.014702]
[1770451790074,0.53721419,68083.0,68058.0,0.014701]
[1770451790273,0.46250159,68118.0,68037.0,0.088237]
[1770451790274,0.53721419,68094.0,68066.0,0.27981464]
[1770451790475,0.53721419,68094.0,68071.0,0.014698]
[1770451791275,0.53721419,68111.0,68077.0,0.26810534]
[1770451791582,0.53721419,68111.0,68084.0,0.014696]
[1770451791975,0.53721419,68111.0,68077.0,0.26810534]
[1770451792177,0.53721419,68109.0,68078.0,0.014697]
[1770451792376,0.53721419,68109.0,68082.0,0.014696]
[1770451793174,0.53721419,68107.0,68073.0,0.014698]
[1770451793379,0.53721419,68105.0,68069.0,0.014699]
[1770451793580,0.53721419,68103.0,68069.0,0.014699]
[1770451793774,0.53721419,68101.0,68069.0,0.014699]
[1770451794081,0.53721419,68099.0,68069.0,0.014699]
[1770451794278,0.53721419,68099.0,68067.0,0.26213569]
[1770451794580,0.53721419,68099.0,68050.0,0.15108323]
[1770451794581,0.53721419,68095.0,68056.0,0.26213569]
[1770451794881,0.53721419,68090.0,68045.0,0.25283769]
[1770451795076,0.53721419,68088.0,68052.0,0.014702]
[1770451795278,0.53721419,68086.0,68056.0,0.014702]
[1770451795481,0.53721419,68084.0,68056.0,0.014702]
[1770451795788,0.53721419,68084.0,68059.0,0.014701]
[1770451796477,0.53721419,68084.0,68055.0,0.25687922]
[1770451796684,0.53721419,68083.0,68055.0,0.25687922]
[1770451797181,0.95076,68099.0,68055.0,0.25687922]
[1770451797182,0.53721419,68082.0,68055.0,0.25687922]
[1770451797370,0.53721419,68082.0,68055.0,0.27158122]
[1770451797571,0.00014206,68081.0,68055.0,0.25687922]
[1770451797777,0.00014206,68080.0,68051.0,0.014703]
[1770451798079,0.53721419,68082.0,68051.0,0.014703]
[1770451798285,0.53721419,68082.0,68059.0,0.001]
[1770451798581,0.53721419,68081.0,68059.0,0.001]
[1770451798983,0.53721419,68094.0,68053.0,0.26339481]
[1770451799186,0.53721419,68094.0,68065.0,0.0147]
[1770451799577,0.53721419,68094.0,68061.0,0.014701]
[1770451800179,0.53721419,68094.0,68064.0,0.0147]
[1770451800385,0.53721419,68094.0,68067.0,0.014699]
[1770451800580,0.00014206,68093.0,68067.0,0.014699]
[1770451800882,0.53721419,68094.0,68067.0,0.014699]
[1770451801789,0.53721419,68094.0,68067.0,0.28029427]
[1770451802678,0.53721419,68094.0,68067.0,0.24829427]
[1770451802882,0.53721419,68091.0,68053.0,0.014702]
[1770451803083,0.53721419,68088.0,68053.0,0.014702]
[1770451803279,0.53721419,68076.0,68049.0,0.014703]
[1770451803484,0.00014206,68075.0,68052.0,0.014703]
[1770451803680,0.53721419,68076.0,68052.0,0.014703]
[1770451804085,0.53721419,68087.0,68057.0,0.014701]
[1770451804790,0.53721419,68087.0,68060.0,0.014701]
[1770451805188,0.53721419,68087.0,68063.0,0.0147]
[1770451805391,0.53721419,68085.0,68051.0,0.26067484]
[1770451805588,0.53721419,68085.0,68055.0,0.014702]
[1770451805795,0.53721419,68085.0,68054.0,0.014702]
[1770451807491,0.53721419,68085.0,68057.0,0.014702]
[1770451807892,0.57920399,68083.0,68054.0,0.014702]
[1770451808087,0.57920399,68081.0,68054.0,0.014702]
[1770451808290,0.57920399,68080.0,68054.0,0.014702]
[1770451808492,0.014691,68105.0,68051.0,0.26067484]
[1770451808493,0.57920399,68078.0,68051.0,0.26067484]
[1770451808694,0.57920399,68076.0,68051.0,0.26067484]
[1770451809399,0.57975887,68075.0,68051.0,0.26067484]
[1770451810100,0.57975887,68075.0,68047.0,0.014704]
[1770451810288,0.57975887,68074.0,68047.0,0.014704]
[1770451810493,0.57975887,68074.0,68042.0,0.22990519]
[1770451810692,0.57975887,68066.0,68042.0,0.22990519]
[1770451811801,0.57975887,68065.0,68042.0,0.001]
[1770451811989,0.00010985,68064.0,68042.0,0.001]
[1770451812189,0.00014206,68063.0,68042.0,0.001]
[1770451812392,0.57975887,68065.0,68042.0,0.001]
[1770451812593,0.00011669,68064.0,68042.0,0.001]
[1770451812793,0.57975887,68063.0,68042.0,0.001]
[1770451812989,0.57975887,68063.0,68042.0,0.00059882]
[1770451813297,0.57975887,68061.0,68023.0,0.2503866]
[1770451813597,0.57975887,68049.0,68023.0,0.2503866]
[1770451813896,0.57975887,68048.0,68023.0,0.2503866]
[1770451814488,0.57975887,68047.0,68023.0,0.2503866]
[1770451814689,0.57975887,68047.0,68003.0,0.014713]
[1770451814690,0.57975887,68045.0,68014.0,0.014711]
[1770451814891,0.57975887,68043.0,68014.0,0.014711]
[1770451815098,0.57975887,68041.0,68014.0,0.014711]
[1770451815303,0.57975887,68039.0,68005.0,0.25083827]
[1770451815695,0.57975887,68050.0,68016.0,0.26554827]
[1770451815900,0.014698,68072.0,68016.0,0.26554827]
[1770451815901,0.57975887,68048.0,68016.0,0.25083827]
[1770451816196,0.57975887,68043.0,68008.0,0.014712]
[1770451816499,0.57975887,68041.0,68007.0,0.26555027]
[1770451816699,0.57975887,68039.0,68007.0,0.26555027]
[1770451817200,0.57975887,68037.0,68007.0,0.26555027]
[1770451817795,0.57975887,68037.0,67995.0,0.014715]
[1770451817796,0.57975887,68060.0,68031.0,0.014707]
[1770451818095,0.57975887,68060.0,68028.0,0.22955933]
[1770451818300,0.59445987,68060.0,68028.0,0.22955933]
[1770451818602,0.43557182,68076.0,68028.0,0.22955933]
[1770451818603,0.57975887,68056.0,68028.0,0.22955933]
[1770451818807,0.57975887,68056.0,68023.0,0.014709]
[1770451819691,0.014699,68069.0,68037.0,0.014706]
[1770451820000,0.58068504,68089.0,68047.0,0.014704]
[1770451820001,0.57975887,68068.0,68047.0,0.014704]
[1770451820196,0.57975887,68081.0,68056.0,0.014702]
[1770451820401,0.57975887,68093.0,68058.0,0.22870855]
[1770451820599,0.57975887,68093.0,68044.0,0.073524]
[1770451820600,0.57975887,68093.0,68062.0,0.22870855]
[1770451820899,0.57975887,68114.0,68083.0,0.014696]
[1770451821102,0.57975887,68125.0,68091.0,0.2451571]
[1770451821399,0.57475887,68123.0,68091.0,0.2451571]
[1770451821799,0.57975887,68105.0,68075.0,0.014698]
[1770451822002,0.57975887,68105.0,68077.0,0.014697]
[1770451822194,0.43557182,68127.0,68080.0,0.2501571]
[1770451822195,0.57975887,68115.0,68080.0,0.2501571]
[1770451822389,0.57975887,68115.0,68104.0,0.0012]
[1770451822595,0.57975887,68115.0,68104.0,0.00070431]
[1770451822904,0.57975887,68115.0,68083.0,0.25080764]
[1770451823404,0.57975887,68115.0,68083.0,0.23611164]
[1770451823898,0.57975887,68113.0,68083.0,0.23611164]
[1770451824198,0.57975887,68109.0,68073.0,0.25080964]
[1770451824993,0.57975887,68109.0,68077.0,0.014697]
[1770451825797,0.57975887,68105.0,68073.0,0.23611164]
[1770451825999,0.57975887,68105.0,68069.0,0.014699]
[1770451826000,0.57975887,68099.0,68065.0,0.0147]
[1770451826196,0.43557182,68124.0,68087.0,0.19392564]
[1770451826197,0.57975887,68112.0,68087.0,0.19392564]
[1770451826394,0.57975887,68112.0,68088.0,0.014695]
[1770451826600,0.57975887,68112.0,68076.0,0.014697]
[1770451827201,0.57975887,68112.0,68080.0,0.014697]
[1770451827493,0.57975887,68129.0,68086.0,0.19619478]
[1770451827804,0.001,68112.0,68088.0,0.014695]
[1770451828409,0.001,68112.0,68086.0,0.19619478]
[1770451828410,0.57975887,68120.0,68091.0,0.014694]
[1770451828711,0.73049137,68163.0,68080.0,0.15108323]
[1770451828712,8.2e-07,68150.0,68116.0,0.33675724]
[1770451829008,0.57975887,68155.0,68120.0,0.15108323]
[1770451829206,0.57975887,68155.0,68131.0,0.014685]
[1770451829601,0.57975887,68155.0,68126.0,0.014687]
[1770451829804,0.57975887,68155.0,68140.0,0.014684]
[1770451830110,0.57975887,68180.0,68130.0,0.48244094]
[1770451830408,0.57975887,68178.0,68137.0,0.014684]
[1770451830604,0.57975887,68178.0,68130.0,0.48244094]
[1770451830605,0.57975887,68178.0,68141.0,0.33149041]
[1770451830806,0.57975887,68178.0,68152.0,0.014681]
[1770451831013,0.57975887,68178.0,68147.0,0.014682]
[1770451831901,0.57975887,68178.0,68141.0,0.33149041]
[1770451832102,0.57975887,68178.0,68155.0,0.01468]
[1770451832503,0.57975887,68201.0,68156.0,0.01468]
[1770451832908,0.57975887,68199.0,68156.0,0.01468]
[1770451833212,0.57975887,68199.0,68151.0,0.31258216]
[1770451833506,0.57975887,68197.0,68155.0,0.01468]
[1770451833902,0.001,68201.0,68151.0,0.28626216]
[1770451833903,0.57975887,68195.0,68151.0,0.28626216]
[1770451834308,0.57975887,68190.0,68140.0,0.29001306]
[1770451834513,0.57975887,68188.0,68143.0,0.014683]
[1770451835011,0.57975887,68186.0,68140.0,0.29001306]
[1770451835415,0.57975887,68186.0,68153.0,0.014681]
[1770451835606,0.57975887,68186.0,68159.0,0.014679]
[1770451835908,0.57975887,68186.0,68162.0,0.014679]
[1770451836211,0.57975887,68186.0,68151.0,0.29501215]
[1770451836806,0.57975887,68186.0,68155.0,0.29501215]
[1770451837012,0.57975887,68186.0,68168.0,0.014677]
[1770451837808,0.57975887,68186.0,68164.0,0.014678]
[1770451838005,0.52992976,68196.0,68156.0,0.01468]
[1770451838207,0.52992976,68196.0,68177.0,0.014676]
[1770451838406,0.52992976,68196.0,68173.0,0.014677]
[1770451840418,0.52992976,68196.0,68179.0,0.014675]
[1770451840610,0.52992976,68218.0,68183.0,0.014674]
[1770451840811,0.52992976,68218.0,68171.0,0.29239146]
[1770451841112,0.52992976,68218.0,68170.0,0.15095053]
[1770451841113,0.52973799,68218.0,68186.0,0.014674]
[1770451841315,0.52973799,68218.0,68176.0,0.29860338]
[1770451841504,0.52973799,68218.0,68170.0,0.15095053]
[1770451841505,0.52973799,68218.0,68200.0,0.014671]
[1770451841709,0.0002,68229.0,68190.0,0.40974568]
[1770451841910,0.52992976,68228.0,68205.0,0.01467]
[1770451842315,0.52992976,68228.0,68194.0,0.25879515]
[1770451842519,0.52992976,68228.0,68201.0,0.01467]
[1770451843115,0.52992976,68238.0,68204.0,0.24277967]
[1770451843316,0.52992976,68238.0,68215.0,0.014667]
[1770451843516,0.52992976,68238.0,68210.0,0.014668]